[Event "Berliner Meisterschaft 2023"]
[Site "Berlin"]
[Date "2023.04.10"]
[Round "3.6"]
[White "Bruedigam, Martin"]
[Black "Schliebener, Stephan"]
[Result "1-0"]
[TimeControl "90 minutes / 40 moves + 30 minutes + 30 seconds"]
[WhiteTitle "IM"]
[WhiteFideId "24608033"]
[BlackFideId "4621662"]
[WhiteElo "2378"]
[BlackElo "2080"]

1. d4 {[%clk 01:30:54]} {[%emt 00:00:05]} Nf6 {[%clk 01:30:33]} {[%emt
00:00:28]} 2. c4 {[%clk 01:31:19]} {[%emt 00:00:05]} e6 {[%clk 01:30:58]}
{[%emt 00:00:05]} 3. Nc3 {[%clk 01:31:43]} {[%emt 00:00:05]} Bb4 {[%clk
01:31:10]} {[%emt 00:00:18]} 4. e3 {[%clk 01:32:06]} {[%emt 00:00:08]} O-O
{[%clk 01:30:39]} {[%emt 00:01:01]} 5. Bd2 {[%clk 01:32:31]} {[%emt 00:00:04]}
Re8 {[%clk 01:25:38]} {[%emt 00:05:31]} 6. Bd3 {[%clk 01:31:49]} {[%emt
00:01:12]} d5 {[%clk 01:22:16]} {[%emt 00:03:52]} 7. Nf3 {[%clk 01:31:48]}
{[%emt 00:00:31]} b6 {[%clk 01:21:28]} {[%emt 00:01:17]} 8. O-O {[%clk
01:31:31]} {[%emt 00:00:47]} dxc4 {[%clk 01:13:18]} {[%emt 00:08:41]} 9. Bxc4
{[%clk 01:31:56]} {[%emt 00:00:05]} Bb7 {[%clk 01:13:34]} {[%emt 00:00:14]} 10.
Qe2 {[%clk 01:32:06]} {[%emt 00:00:20]} Nbd7 {[%clk 01:07:10]} {[%emt
00:06:54]} 11. Rfd1 {[%clk 01:29:00]} {[%emt 00:03:36]} Qe7 {[%clk 01:04:06]}
{[%emt 00:03:33]} 12. a3 {[%clk 01:27:38]} {[%emt 00:01:52]} Bxc3 {[%clk
01:04:27]} {[%emt 00:00:09]} 13. Bxc3 {[%clk 01:28:02]} {[%emt 00:00:06]} Ne4
{[%clk 01:04:43]} {[%emt 00:00:15]} 14. Be1 {[%clk 01:28:05]} {[%emt 00:00:27]}
c5 {[%clk 01:04:32]} {[%emt 00:00:41]} 15. Rac1 {[%clk 01:22:53]} {[%emt
00:05:42]} Red8 {[%clk 00:57:39]} {[%emt 00:07:23]} 16. Ba6 {[%clk 01:21:06]}
{[%emt 00:02:18]} Bd5 {[%clk 00:57:08]} {[%emt 00:01:01]} 17. b4 {[%clk
01:17:52]} {[%emt 00:03:44]} h6 {[%clk 00:46:27]} {[%emt 00:11:11]} 18. Bc4
{[%clk 01:07:50]} {[%emt 00:10:32]} Bxc4 {[%clk 00:44:28]} {[%emt 00:02:29]} 19.
Qxc4 {[%clk 01:08:09]} {[%emt 00:00:10]} Nd6 {[%clk 00:44:03]} {[%emt
00:00:55]} 20. Qe2 {[%clk 01:05:48]} {[%emt 00:02:52]} Rac8 {[%emt 00:29:55]}
21. bxc5 {[%clk 00:38:43]} {[%emt 00:00:56]} bxc5 {[%clk 00:41:42]} {[%emt
00:00:05]} 22. dxc5 {[%clk 00:38:50]} {[%emt 00:00:23]} Nxc5 {[%clk 00:39:43]}
{[%emt 00:02:29]} 23. h3 {[%clk 00:35:42]} {[%emt 00:03:38]} Ndb7 {[%clk
00:36:24]} {[%emt 00:03:48]} 24. Nd4 {[%clk 00:32:12]} {[%emt 00:04:02]} e5
{[%clk 00:35:07]} {[%emt 00:01:45]} 25. Nf5 {[%clk 00:31:52]} {[%emt 00:00:51]}
Qf6 {[%clk 00:32:26]} {[%emt 00:03:09]} 26. Ng3 {[%clk 00:28:31]} {[%emt
00:03:52]} Rxd1 {[%clk 00:30:13]} {[%emt 00:02:44]} 27. Rxd1 {[%clk 00:28:38]}
{[%emt 00:00:23]} Rd8 {[%clk 00:30:24]} {[%emt 00:00:18]} 28. Rb1 {[%clk
00:28:09]} {[%emt 00:01:00]} Qe6 {[%clk 00:28:03]} {[%emt 00:02:52]} 29. e4
{[%clk 00:24:22]} {[%emt 00:04:16]} Rd7 {[%clk 00:20:11]} {[%emt 00:08:22]} 30.
Qc2 {[%clk 00:23:09]} {[%emt 00:01:43]} Qa6 {[%clk 00:16:53]} {[%emt 00:03:49]}
31. Qc3 {[%clk 00:15:23]} {[%emt 00:08:15]} Qd3 {[%clk 00:14:21]} {[%emt
00:03:01]} 32. Rc1 {[%clk 00:14:54]} {[%emt 00:01:00]} Kh7 {[%clk 00:10:09]}
{[%emt 00:04:42]} 33. Qxe5 {[%clk 00:12:18]} {[%emt 00:03:06]} Qxa3 {[%clk
00:09:35]} {[%emt 00:01:04]} 34. Ra1 {[%clk 00:10:33]} {[%emt 00:02:15]} Qd3
{[%clk 00:08:24]} {[%emt 00:01:41]} 35. Rxa7 {[%clk 00:05:33]} {[%emt
00:05:31]} Qd4 {[%clk 00:07:25]} {[%emt 00:01:29]} 36. Bc3 {[%clk 00:03:46]}
{[%emt 00:02:17]} Qxe5 {[%clk 00:07:26]} {[%emt 00:00:29]} 37. Bxe5 {[%clk
00:04:11]} {[%emt 00:00:04]} Nd3 {[%clk 00:07:12]} {[%emt 00:00:40]} 38. Bb8
{[%clk 00:03:55]} {[%emt 00:00:50]} Nbc5 {[%clk 00:07:22]} {[%emt 00:00:19]} 39.
Rxd7 {[%clk 00:02:13]} {[%emt 00:02:13]} Nxd7 {[%clk 00:07:45]} {[%emt
00:00:06]} 40. Bd6 {[%clk 00:02:39]} {[%emt 00:00:04]} g6 {[%clk 00:06:25]}
{[%emt 00:01:50]} 41. Kf1 {[%clk 00:02:44]} {[%emt 00:00:25]} Nb2 {[%clk
00:05:43]} {[%emt 00:01:10]} 42. Ke2 {[%clk 00:02:46]} {[%emt 00:00:30]} Nc4
{[%clk 00:06:04]} {[%emt 00:00:09]} 43. Bc7 {[%clk 00:03:09]} {[%emt 00:00:07]}
Na3 {[%clk 00:05:45]} {[%emt 00:00:47]} 44. f3 {[%clk 00:02:33]} {[%emt
00:01:08]} Nb5 {[%clk 00:06:07]} {[%emt 00:00:09]} 45. Ba5 {[%clk 00:02:52]}
{[%emt 00:00:11]} Nd4+ {[%clk 00:06:18]} {[%emt 00:00:19]} 46. Ke3 {[%clk
00:03:01]} {[%emt 00:00:20]} Ne6 {[%clk 00:06:41]} {[%emt 00:00:07]} 47. Bc3
{[%clk 00:03:01]} {[%emt 00:00:30]} g5 {[%clk 00:27:10]} {[%emt 00:10:01]} 48.
Nf5 {[%clk 00:32:21]} {[%emt 00:01:10]} Nf4 {[%clk 00:26:30]} {[%emt 00:01:09]}
49. Kf2 {[%clk 00:32:38]} {[%emt 00:00:14]} Nc5 {[%clk 00:24:40]} {[%emt
00:02:20]} 50. Bd2 {[%clk 00:31:25]} {[%emt 00:01:41]} Ng6 {[%clk 00:24:45]}
{[%emt 00:00:27]} 51. Be3 {[%clk 00:30:50]} {[%emt 00:01:05]} Ne6 {[%clk
00:22:52]} {[%emt 00:02:24]} 52. Nd6 {[%clk 00:30:51]} {[%emt 00:00:28]} Kg7
{[%clk 00:22:23]} {[%emt 00:00:58]} 53. Ne8+ {[%clk 00:30:23]} {[%emt
00:00:58]} Kf8 {[%clk 00:21:35]} {[%emt 00:01:15]} 54. Nd6 {[%clk 00:30:11]}
{[%emt 00:00:46]} Kg7 {[%clk 00:21:52]} {[%emt 00:00:13]} 55. Bd2 {[%clk
00:30:33]} {[%emt 00:00:08]} Kg8 {[%clk 00:20:57]} {[%emt 00:01:23]} 56. Bc3
{[%clk 00:30:31]} {[%emt 00:00:34]} Nef4 {[%clk 00:18:54]} {[%emt 00:02:18]} 57.
Nf5 {[%clk 00:27:35]} {[%emt 00:03:40]} Kh7 {[%clk 00:17:21]} {[%emt 00:02:03]}
58. Bd2 {[%clk 00:27:27]} {[%emt 00:00:37]} Ne6 {[%clk 00:17:45]} {[%emt
00:00:07]} 59. g3 {[%clk 00:27:27]} {[%emt 00:00:30]} Ne5 {[%clk 00:16:39]}
{[%emt 00:01:35]} 60. Bc3 {[%clk 00:26:59]} {[%emt 00:01:00]} Ng6 {[%clk
00:16:54]} {[%emt 00:00:14]} 61. Nd6 {[%clk 00:27:07]} {[%emt 00:00:21]} Kg8
{[%clk 00:17:17]} {[%emt 00:00:07]} 62. Ne8 {[%clk 00:27:21]} {[%emt 00:00:16]}
Kf8 {[%clk 00:17:01]} {[%emt 00:00:43]} 63. Nf6 {[%clk 00:27:45]} {[%emt
00:00:09]} Nd8 {[%clk 00:10:25]} {[%emt 00:07:06]} 64. Ke3 {[%clk 00:26:58]}
{[%emt 00:01:16]} Nc6 {[%clk 00:10:47]} {[%emt 00:00:09]} 65. Bb2 {[%clk
00:24:38]} {[%emt 00:02:50]} Kg7 {[%clk 00:10:13]} {[%emt 00:01:05]} 66. Kf2
{[%clk 00:23:28]} {[%emt 00:01:40]} Nge7 {[%clk 00:10:14]} {[%emt 00:00:25]} 67.
Nd7+ {[%clk 00:22:32]} {[%emt 00:01:29]} Kg8 {[%clk 00:10:10]} {[%emt
00:00:32]} 68. Nf6+ {[%clk 00:22:19]} {[%emt 00:00:45]} Kg7 {[%clk 00:10:35]}
{[%emt 00:00:06]} 69. Bc3 {[%clk 00:22:25]} {[%emt 00:00:24]} Kg6 {[%clk
00:10:32]} {[%emt 00:00:33]} 70. f4 {[%clk 00:21:02]} {[%emt 00:01:52]} gxf4
{[%clk 00:10:37]} {[%emt 00:00:26]} 71. gxf4 {[%clk 00:21:30]} {[%emt
00:00:01]} Kg7 {[%clk 00:08:21]} {[%emt 00:02:46]} 72. Kg3 {[%clk 00:19:49]}
{[%emt 00:02:10]} Ng8 {[%clk 00:08:37]} {[%emt 00:00:15]} 73. Nd5+ {[%clk
00:19:32]} {[%emt 00:00:47]} Kh7 {[%clk 00:08:54]} {[%emt 00:00:13]} 74. Kg4
{[%clk 00:19:42]} {[%emt 00:00:19]} Nce7 {[%clk 00:09:12]} {[%emt 00:00:12]} 75.
f5 {[%clk 00:15:09]} {[%emt 00:05:03]} Nc6 {[%clk 00:09:09]} {[%emt 00:00:33]}
76. Kh5 {[%clk 00:14:45]} {[%emt 00:00:54]} Nb8 {[%clk 00:08:05]} {[%emt
00:01:35]} 77. h4 {[%clk 00:12:14]} {[%emt 00:03:00]} Na6 {[%clk 00:07:44]}
{[%emt 00:00:51]} 78. Bd4 {[%clk 00:12:18]} {[%emt 00:00:26]} Nb8 {[%clk
00:08:05]} {[%emt 00:00:10]} 79. Kg4 {[%clk 00:11:09]} {[%emt 00:01:37]} Nd7
{[%clk 00:07:26]} {[%emt 00:01:10]} 80. f6 {[%clk 00:10:24]} {[%emt 00:01:15]}
Nf8 {[%clk 00:07:01]} {[%emt 00:00:56]} 81. h5 {[%clk 00:10:43]} {[%emt
00:00:11]} Ne6 {[%clk 00:07:26]} {[%emt 00:00:05]} 82. Be3 {[%clk 00:11:02]}
{[%emt 00:00:11]} Kh8 {[%clk 00:07:41]} {[%emt 00:00:16]} 83. Kf5 {[%clk
00:11:27]} {[%emt 00:00:05]} Kh7 {[%clk 00:08:06]} {[%emt 00:00:06]} 84. e5
{[%clk 00:10:11]} {[%emt 00:01:46]} Kh8 {[%clk 00:08:25]} {[%emt 00:00:10]} 85.
Nb6 {[%clk 00:10:21]} {[%emt 00:00:20]} Kh7 {[%clk 00:08:17]} {[%emt 00:00:39]}
86. Nc4 {[%clk 00:10:29]} {[%emt 00:00:22]} 1-0

[Event "Berliner Meisterschaft 2023"]
[Site "Berlin"]
[Date "2023.04.10"]
[Round "3.7"]
[White "Poltorak, Sebastian"]
[Black "Donath, Johann"]
[Result "1/2-1/2"]
[TimeControl "90 minutes / 40 moves + 30 minutes + 30 seconds"]
[WhiteTitle "FM"]
[WhiteFideId "1199498"]
[BlackFideId "24685160"]
[WhiteElo "2368"]
[BlackElo "2031"]

1. d4 {[%clk 01:30:50]} {[%emt 00:00:09]} Nf6 {[%clk 01:30:38]} {[%emt
00:00:23]} 2. c4 {[%clk 01:31:12]} {[%emt 00:00:07]} e6 {[%clk 01:31:01]}
{[%emt 00:00:07]} 3. Nc3 {[%clk 01:31:36]} {[%emt 00:00:06]} Bb4 {[%clk
01:31:25]} {[%emt 00:00:06]} 4. Nf3 {[%clk 01:31:40]} {[%emt 00:00:25]} b6
{[%clk 01:31:28]} {[%emt 00:00:28]} 5. Qb3 {[%clk 01:31:58]} {[%emt 00:00:12]}
c5 {[%clk 01:31:28]} {[%emt 00:00:31]} 6. dxc5 {[%clk 01:32:22]} {[%emt
00:00:05]} Bxc5 {[%clk 01:31:14]} {[%emt 00:00:44]} 7. Bf4 {[%clk 01:32:35]}
{[%emt 00:00:17]} O-O {[%clk 01:28:32]} {[%emt 00:03:12]} 8. e3 {[%clk
01:32:34]} {[%emt 00:00:31]} Bb7 {[%clk 01:27:48]} {[%emt 00:01:14]} 9. Rd1
{[%clk 01:32:07]} {[%emt 00:00:56]} h6 {[%clk 01:24:14]} {[%emt 00:04:04]} 10.
Be2 {[%clk 01:31:04]} {[%emt 00:01:33]} d5 {[%clk 01:18:06]} {[%emt 00:06:38]}
11. cxd5 {[%clk 01:27:43]} {[%emt 00:03:51]} exd5 {[%clk 01:17:39]} {[%emt
00:00:58]} 12. O-O {[%clk 01:19:25]} {[%emt 00:08:47]} Nbd7 {[%clk 01:17:00]}
{[%emt 00:01:10]} 13. Nd4 {[%clk 01:11:15]} {[%emt 00:08:39]} Re8 {[%clk
01:14:56]} {[%emt 00:02:34]} 14. Na4 {[%clk 01:06:32]} {[%emt 00:05:13]} Bf8
{[%clk 01:10:38]} {[%emt 00:04:48]} 15. Bb5 {[%clk 01:04:26]} {[%emt 00:02:37]}
a6 {[%clk 01:08:54]} {[%emt 00:02:14]} 16. Bc6 {[%clk 00:58:40]} {[%emt
00:06:15]} Bxc6 {[%clk 01:08:37]} {[%emt 00:00:47]} 17. Nxc6 {[%clk 00:59:08]}
{[%emt 00:00:01]} Qc8 {[%clk 01:09:00]} {[%emt 00:00:07]} 18. Nb4 {[%clk
00:57:17]} {[%emt 00:02:22]} b5 {[%clk 01:01:09]} {[%emt 00:08:21]} 19. Nc3
{[%clk 00:56:53]} {[%emt 00:00:53]} Nc5 {[%clk 01:01:02]} {[%emt 00:00:37]} 20.
Qc2 {[%clk 00:55:06]} {[%emt 00:02:17]} Ne6 {[%clk 00:59:28]} {[%emt 00:02:04]}
21. Ncxd5 {[%clk 00:51:17]} {[%emt 00:04:19]} Nxf4 {[%clk 00:57:07]} {[%emt
00:02:52]} 22. exf4 {[%clk 00:51:34]} {[%emt 00:00:14]} Nxd5 {[%clk 00:41:18]}
{[%emt 00:16:19]} 23. Qxc8 {[%clk 00:51:55]} {[%emt 00:00:09]} Raxc8 {[%clk
00:41:44]} {[%emt 00:00:04]} 24. Nxd5 {[%clk 00:52:21]} {[%emt 00:00:04]} Re2
{[%clk 00:40:58]} {[%emt 00:01:15]} 25. Rb1 {[%clk 00:46:46]} {[%emt 00:06:05]}
Rcc2 {[%clk 00:40:50]} {[%emt 00:00:38]} 26. Nc3 {[%clk 00:45:21]} {[%emt
00:01:55]} Red2 {[%clk 00:41:14]} {[%emt 00:00:06]} 27. Ne4 {[%clk 00:41:42]}
{[%emt 00:04:09]} Re2 {[%clk 00:33:44]} {[%emt 00:08:00]} 28. Nc3 {[%clk
00:41:48]} {[%emt 00:00:25]} Red2 {[%clk 00:34:08]} {[%emt 00:00:06]} 1/2-1/2

[Event "Berliner Meisterschaft 2023"]
[Site "Berlin"]
[Date "2023.04.10"]
[Round "3.8"]
[White "Glantz, Robert"]
[Black "Noeldner, Julian"]
[Result "1-0"]
[TimeControl "90 minutes / 40 moves + 30 minutes + 30 seconds"]
[WhiteTitle "FM"]
[WhiteFideId "24629596"]
[BlackFideId "16218744"]
[WhiteElo "2360"]
[BlackElo "2121"]

1. d4 {[%clk 01:30:52]} {[%emt 00:00:08]} Nf6 {[%clk 01:30:26]} {[%emt
00:00:34]} 2. Nf3 {[%clk 01:31:09]} {[%emt 00:00:13]} d5 {[%clk 01:29:52]}
{[%emt 00:01:04]} 3. Bf4 {[%clk 01:31:10]} {[%emt 00:00:29]} c5 {[%clk
01:28:38]} {[%emt 00:01:44]} 4. e3 {[%clk 01:31:27]} {[%emt 00:00:13]} Nc6
{[%clk 01:29:02]} {[%emt 00:00:06]} 5. Nbd2 {[%clk 01:31:32]} {[%emt 00:00:25]}
Qb6 {[%clk 01:29:25]} {[%emt 00:00:07]} 6. dxc5 {[%clk 01:31:29]} {[%emt
00:00:33]} Qxb2 {[%clk 01:29:49]} {[%emt 00:00:06]} 7. c4 {[%clk 01:29:08]}
{[%emt 00:02:50]} e6 {[%clk 01:27:53]} {[%emt 00:02:26]} 8. Rc1 {[%clk
01:29:07]} {[%emt 00:00:31]} Qxa2 {[%clk 01:09:02]} {[%emt 00:19:21]} 9. Nd4
{[%clk 01:28:54]} {[%emt 00:00:43]} e5 {[%clk 00:53:23]} {[%emt 00:16:09]} 10.
Nb5 {[%clk 00:41:03]} {[%emt 00:48:22]} exf4 {[%clk 00:45:48]} {[%emt
00:08:05]} 11. Nc7+ {[%clk 00:34:42]} {[%emt 00:06:51]} Kd8 {[%clk 00:45:23]}
{[%emt 00:00:54]} 12. Nxa8 {[%clk 00:34:46]} {[%emt 00:00:26]} fxe3 {[%clk
00:42:37]} {[%emt 00:03:16]} 13. fxe3 {[%clk 00:34:59]} {[%emt 00:00:18]} Bxc5
{[%clk 00:42:29]} {[%emt 00:00:38]} 14. cxd5 {[%clk 00:33:31]} {[%emt
00:01:58]} Qxd5 {[%clk 00:40:10]} {[%emt 00:02:47]} 15. e4 {[%clk 00:20:02]}
{[%emt 00:14:00]} Nxe4 {[%clk 00:15:57]} {[%emt 00:24:43]} 16. Nxe4 {[%clk
00:19:41]} {[%emt 00:00:51]} Bb4+ {[%clk 00:16:03]} {[%emt 00:00:24]} 17. Kf2
{[%clk 00:17:12]} {[%emt 00:02:59]} Qxd1 {[%clk 00:07:28]} {[%emt 00:09:06]} 18.
Rxd1+ {[%clk 00:17:37]} {[%emt 00:00:05]} Bd7 {[%clk 00:07:53]} {[%emt
00:00:05]} 19. Bb5 {[%clk 00:11:13]} {[%emt 00:06:54]} Kc8 {[%clk 00:05:34]}
{[%emt 00:02:47]} 20. Nd6+ {[%clk 00:10:13]} {[%emt 00:01:32]} Bxd6 {[%clk
00:04:04]} {[%emt 00:02:00]} 21. Rxd6 {[%clk 00:10:40]} {[%emt 00:00:03]} Rd8
{[%clk 00:02:14]} {[%emt 00:02:20]} 22. Rhd1 {[%clk 00:07:55]} {[%emt
00:03:15]} Be6 {[%clk 00:02:29]} {[%emt 00:00:16]} 23. Rxc6+ {[%clk 00:07:18]}
{[%emt 00:01:07]} bxc6 {[%clk 00:02:51]} {[%emt 00:00:08]} 24. Ba6+ {[%clk
00:07:44]} {[%emt 00:00:04]} 1-0

[Event "Berliner Meisterschaft 2023"]
[Site "Berlin"]
[Date "2023.04.11"]
[Round "4.1"]
[White "Lagunow, Raphael"]
[Black "Glek, Igor"]
[Result "1/2-1/2"]
[TimeControl "90 minutes / 40 moves + 30 minutes + 30 seconds"]
[WhiteTitle "IM"]
[BlackTitle "GM"]
[WhiteFideId "246552644"]
[BlackFideId "4100484"]
[WhiteElo "2410"]
[BlackElo "2443"]

1. e4 {[%clk 01:11:49]} {[%emt 00:19:05]} e6 {[%clk 01:29:33]} {[%emt
00:01:31]} 2. d4 {[%clk 01:12:13]} {[%emt 00:00:06]} d5 {[%clk 01:30:01]}
{[%emt 00:00:02]} 3. Nc3 {[%clk 01:12:36]} {[%emt 00:00:07]} Nf6 {[%clk
01:29:59]} {[%emt 00:00:33]} 4. Bg5 {[%clk 01:12:58]} {[%emt 00:00:08]} dxe4
{[%clk 01:30:24]} {[%emt 00:00:05]} 5. Nxe4 {[%clk 01:13:22]} {[%emt 00:00:05]}
Be7 {[%clk 01:30:15]} {[%emt 00:00:39]} 6. Nxf6+ {[%clk 01:13:37]} {[%emt
00:00:15]} Bxf6 {[%clk 01:30:39]} {[%emt 00:00:05]} 7. Bxf6 {[%clk 01:14:02]}
{[%emt 00:00:05]} Qxf6 {[%clk 01:31:06]} {[%emt 00:00:03]} 8. Nf3 {[%clk
01:14:27]} {[%emt 00:00:06]} c5 {[%clk 01:15:14]} {[%emt 00:16:22]} 9. Bb5+
{[%clk 00:46:26]} {[%emt 00:28:31]} Bd7 {[%clk 01:14:42]} {[%emt 00:01:02]} 10.
Qd3 {[%clk 00:46:20]} {[%emt 00:00:35]} cxd4 {[%clk 01:09:55]} {[%emt
00:05:17]} 11. O-O-O {[%clk 00:42:51]} {[%emt 00:03:59]} Nc6 {[%clk 01:06:07]}
{[%emt 00:04:19]} 12. Nxd4 {[%clk 00:39:45]} {[%emt 00:03:35]} O-O {[%clk
01:01:34]} {[%emt 00:05:02]} 13. Nxc6 {[%clk 00:34:29]} {[%emt 00:05:47]} Bxc6
{[%clk 01:01:56]} {[%emt 00:00:09]} 14. Bxc6 {[%clk 00:34:53]} {[%emt
00:00:06]} bxc6 {[%clk 01:02:20]} {[%emt 00:00:06]} 15. Qe3 {[%clk 00:28:02]}
{[%emt 00:07:21]} Rfb8 {[%clk 00:57:22]} {[%emt 00:05:28]} 16. c3 {[%clk
00:28:02]} {[%emt 00:00:30]} Rb5 {[%clk 00:51:58]} {[%emt 00:05:53]} 17. Rd2
{[%clk 00:26:17]} {[%emt 00:02:15]} h6 {[%clk 00:44:12]} {[%emt 00:08:15]} 18.
Qd4 {[%clk 00:17:05]} {[%emt 00:09:43]} Qg6 {[%clk 00:41:44]} {[%emt 00:02:58]}
19. f3 {[%clk 00:16:14]} {[%emt 00:01:22]} Rd5 {[%clk 00:32:29]} {[%emt
00:09:45]} 20. Qe3 {[%clk 00:16:34]} {[%emt 00:00:10]} a5 {[%clk 00:17:18]}
{[%emt 00:15:42]} 21. Rhd1 {[%clk 00:15:06]} {[%emt 00:01:57]} a4 {[%clk
00:16:12]} {[%emt 00:01:36]} 1/2-1/2

[Event "Berliner Meisterschaft 2023"]
[Site "Berlin"]
[Date "2023.04.11"]
[Round "4.2"]
[White "Baskin, Robert"]
[Black "Bruedigam, Martin"]
[Result "1/2-1/2"]
[TimeControl "90 minutes / 40 moves + 30 minutes + 30 seconds"]
[WhiteTitle "IM"]
[BlackTitle "IM"]
[WhiteFideId "24662402"]
[BlackFideId "24608033"]
[WhiteElo "2442"]
[BlackElo "2378"]

1. e4 {[%clk 01:11:53]} {[%emt 00:19:04]} c6 {[%clk 01:30:48]} {[%emt
00:00:12]} 2. d4 {[%clk 01:11:53]} {[%emt 00:00:30]} d5 {[%clk 01:31:10]}
{[%emt 00:00:09]} 3. e5 {[%clk 01:12:12]} {[%emt 00:00:10]} Bf5 {[%clk
01:31:09]} {[%emt 00:00:30]} 4. Nf3 {[%clk 01:12:31]} {[%emt 00:00:11]} e6
{[%clk 01:31:19]} {[%emt 00:00:20]} 5. Be2 {[%clk 01:12:46]} {[%emt 00:00:15]}
Nd7 {[%clk 01:26:08]} {[%emt 00:05:41]} 6. O-O {[%clk 01:11:11]} {[%emt
00:02:06]} Ne7 {[%clk 01:25:31]} {[%emt 00:01:08]} 7. c3 {[%clk 01:11:20]}
{[%emt 00:00:21]} h6 {[%clk 01:19:27]} {[%emt 00:06:34]} 8. a4 {[%clk
01:10:44]} {[%emt 00:01:06]} a5 {[%clk 01:19:53]} {[%emt 00:00:05]} 9. Na3
{[%clk 01:09:50]} {[%emt 00:01:24]} Qc7 {[%clk 01:19:56]} {[%emt 00:00:27]} 10.
Nc2 {[%clk 01:07:51]} {[%emt 00:02:28]} Bh7 {[%clk 01:17:55]} {[%emt 00:02:31]}
11. Nfe1 {[%clk 01:03:35]} {[%emt 00:04:46]} Nc8 {[%clk 01:07:13]} {[%emt
00:11:13]} 12. f4 {[%clk 01:00:19]} {[%emt 00:03:47]} Ndb6 {[%clk 00:50:35]}
{[%emt 00:17:07]} 13. Nd3 {[%clk 00:56:11]} {[%emt 00:04:37]} Ne7 {[%clk
00:47:49]} {[%emt 00:03:17]} 14. b3 {[%clk 00:49:44]} {[%emt 00:06:57]} Nd7
{[%clk 00:40:28]} {[%emt 00:07:51]} 15. Ba3 {[%clk 00:45:33]} {[%emt 00:04:41]}
Nc8 {[%clk 00:30:08]} {[%emt 00:10:50]} 16. Bxf8 {[%clk 00:43:37]} {[%emt
00:02:27]} Nxf8 {[%clk 00:30:27]} {[%emt 00:00:11]} 17. Ne3 {[%clk 00:42:40]}
{[%emt 00:01:26]} Ne7 {[%clk 00:29:09]} {[%emt 00:01:48]} 18. g4 {[%clk
00:38:30]} {[%emt 00:04:40]} h5 {[%clk 00:24:08]} {[%emt 00:05:31]} 19. gxh5
{[%clk 00:31:12]} {[%emt 00:07:48]} Nf5 {[%clk 00:23:42]} {[%emt 00:00:56]} 20.
Nxf5 {[%clk 00:31:17]} {[%emt 00:00:25]} Bxf5 {[%clk 00:24:07]} {[%emt
00:00:05]} 21. Bg4 {[%clk 00:31:32]} {[%emt 00:00:15]} Qe7 {[%clk 00:23:44]}
{[%emt 00:00:53]} 22. Ra2 {[%clk 00:31:10]} {[%emt 00:00:52]} O-O-O {[%clk
00:05:21]} {[%emt 00:18:53]} 23. Rg2 {[%clk 00:30:05]} {[%emt 00:01:35]} Be4
{[%clk 00:05:03]} {[%emt 00:00:48]} 24. Rg3 {[%clk 00:27:59]} {[%emt 00:02:36]}
g6 {[%clk 00:04:58]} {[%emt 00:00:35]} 25. hxg6 {[%clk 00:23:31]} {[%emt
00:04:58]} Nxg6 {[%clk 00:04:14]} {[%emt 00:01:14]} 26. f5 {[%clk 00:19:32]}
{[%emt 00:04:29]} exf5 {[%clk 00:04:21]} {[%emt 00:00:23]} 27. Bxf5+ {[%clk
00:19:57]} {[%emt 00:00:05]} Kb8 {[%clk 00:04:10]} {[%emt 00:00:41]} 28. Qe2
{[%clk 00:17:21]} {[%emt 00:03:05]} Rh4 {[%clk 00:02:38]} {[%emt 00:02:02]} 29.
h3 {[%clk 00:13:15]} {[%emt 00:04:36]} Bxf5 {[%clk 00:01:42]} {[%emt 00:01:27]}
30. Rxf5 {[%clk 00:13:37]} {[%emt 00:00:08]} Rdh8 {[%clk 00:00:59]} {[%emt
00:01:13]} 31. Qf1 {[%clk 00:11:56]} {[%emt 00:02:10]} R8h7 {[%clk 00:01:11]}
{[%emt 00:00:19]} 32. Nc5 {[%clk 00:11:19]} {[%emt 00:01:07]} Ka7 {[%clk
00:01:14]} {[%emt 00:00:27]} 33. Rgf3 {[%clk 00:10:29]} {[%emt 00:01:20]} Rg7
{[%clk 00:01:15]} {[%emt 00:00:29]} 34. Rg3 {[%clk 00:07:21]} {[%emt 00:03:38]}
Rhh7 {[%clk 00:01:15]} {[%emt 00:00:30]} 35. Rfg5 {[%clk 00:07:23]} {[%emt
00:00:28]} Rh6 {[%clk 00:00:37]} {[%emt 00:01:08]} 36. R5g4 {[%clk 00:05:10]}
{[%emt 00:02:43]} Rgh7 {[%clk 00:00:51]} {[%emt 00:00:16]} 37. b4 {[%clk
00:02:41]} {[%emt 00:03:00]} axb4 {[%clk 00:00:44]} {[%emt 00:00:38]} 38. cxb4
{[%clk 00:03:06]} {[%emt 00:00:04]} Rh4 {[%clk 00:00:56]} {[%emt 00:00:18]} 39.
b5 {[%clk 00:01:47]} {[%emt 00:01:50]} Rxg4 {[%clk 00:01:24]} {[%emt 00:00:01]}
40. Rxg4 {[%clk 00:02:01]} {[%emt 00:00:16]} Nxe5 {[%clk 00:00:39]} {[%emt
00:01:15]} 41. b6+ {[%clk 00:22:27]} {[%emt 00:10:04]} Kxb6 {[%clk 00:30:21]}
{[%emt 00:00:49]} 42. Rg3 {[%clk 00:20:51]} {[%emt 00:02:06]} Ka7 {[%clk
00:14:25]} {[%emt 00:16:25]} 43. Rb3 {[%clk 00:20:48]} {[%emt 00:00:32]} Qg5+
{[%clk 00:13:04]} {[%emt 00:01:51]} 44. Kh1 {[%clk 00:19:53]} {[%emt 00:01:25]}
Nc4 {[%clk 00:12:26]} {[%emt 00:01:09]} 45. Rxb7+ {[%clk 00:19:15]} {[%emt
00:01:08]} Ka8 {[%clk 00:12:51]} {[%emt 00:00:04]} 46. Rxf7 {[%clk 00:12:51]}
{[%emt 00:06:54]} Rxf7 {[%clk 00:12:06]} {[%emt 00:01:15]} 47. Qxf7 {[%clk
00:13:16]} {[%emt 00:00:05]} Qc1+ {[%clk 00:12:23]} {[%emt 00:00:13]} 48. Kh2
{[%clk 00:13:00]} {[%emt 00:00:46]} Qd2+ {[%clk 00:12:30]} {[%emt 00:00:23]} 49.
Kg3 {[%clk 00:13:11]} {[%emt 00:00:19]} Qg5+ {[%clk 00:12:43]} {[%emt
00:00:17]} 50. Kf3 {[%clk 00:12:15]} {[%emt 00:01:26]} Qe3+ {[%clk 00:12:59]}
{[%emt 00:00:15]} 51. Kg2 {[%clk 00:12:39]} {[%emt 00:00:06]} Qg5+ {[%clk
00:13:14]} {[%emt 00:00:15]} 52. Kf3 {[%clk 00:11:07]} {[%emt 00:02:01]} Qe3+
{[%clk 00:13:39]} {[%emt 00:00:05]} 1/2-1/2